[Event "Live Chess"]
[Site "Chess.com"]
[Date "2023.05.21"]
[Round "-"]
[White "febray_27"]
[Black "LodeshChess"]
[Result "1-0"]
[WhiteElo "2006"]
[BlackElo "1182"]
[TimeControl "300"]
[EndTime "5:41:28 PDT"]
[Termination "febray_27 won by resignation"]

1. Nf3 {[%clk 0:04:50.1]} 1... c6 {[%clk 0:04:53.2]} 2. d4 {[%clk 0:04:45.9]}
2... d5 {[%clk 0:04:51.4]} 3. g3 {[%clk 0:04:44.8]} 3... Bg4 {[%clk 0:04:50.5]}
4. Bg2 {[%clk 0:04:43.4]} 4... Nf6 {[%clk 0:04:48.7]} 5. O-O {[%clk 0:04:40]}
5... e6 {[%clk 0:04:39.8]} 6. c4 {[%clk 0:04:38.5]} 6... Nbd7 {[%clk 0:04:29.6]}
7. Nc3 {[%clk 0:04:36.9]} 7... Nb6 {[%clk 0:04:27.9]} 8. c5 {[%clk 0:04:32.6]}
8... Nc4 {[%clk 0:04:26.3]} 9. b3 {[%clk 0:04:18.3]} 9... Na5 {[%clk 0:04:16.2]}
10. Ne5 {[%clk 0:04:11.9]} 10... Be7 {[%clk 0:04:06.2]} 11. Bd2 {[%clk
0:03:48.6]} 11... b6 {[%clk 0:04:04.3]} 12. b4 {[%clk 0:03:45.8]} 12... Nb7
{[%clk 0:04:02.9]} 13. Na4 {[%clk 0:03:40.1]} 13... bxc5 {[%clk 0:03:59.8]} 14.
bxc5 {[%clk 0:03:38]} 14... O-O {[%clk 0:03:55.6]} 15. Nxc6 {[%clk 0:03:35.2]}
15... Qc7 {[%clk 0:03:52.5]} 16. Ne5 {[%clk 0:03:28.9]} 16... Bf5 {[%clk
0:03:36.1]} 17. Bf4 {[%clk 0:03:20.9]} 17... Be4 {[%clk 0:03:30.1]} 18. Ng6
{[%clk 0:03:08.7]} 18... Qd7 {[%clk 0:03:18.1]} 19. Nxf8 {[%clk 0:03:05.8]}
19... Bxf8 {[%clk 0:03:17.6]} 20. Rc1 {[%clk 0:03:03.1]} 20... Rc8 {[%clk
0:03:09.8]} 21. f3 {[%clk 0:02:53]} 21... Bg6 {[%clk 0:03:03.4]} 22. Qb3 {[%clk
0:02:51.6]} 22... h6 {[%clk 0:02:56]} 23. Rfd1 {[%clk 0:02:49.7]} 23... Na5
{[%clk 0:02:49.3]} 24. Qc2 {[%clk 0:02:14.7]} 24... Nc4 {[%clk 0:02:48]} 25. Qb3
{[%clk 0:02:09.7]} 25... Bh7 {[%clk 0:02:30.9]} 26. e4 {[%clk 0:02:06]} 26... g5
{[%clk 0:02:24.7]} 27. Be5 {[%clk 0:01:53.3]} 27... Nxe5 {[%clk 0:02:08.2]} 28.
dxe5 {[%clk 0:01:53.2]} 28... Ne8 {[%clk 0:02:06.9]} 29. exd5 {[%clk 0:01:49.4]}
29... exd5 {[%clk 0:02:02.7]} 30. Rxd5 {[%clk 0:01:42.6]} 30... Qe6 {[%clk
0:02:00.8]} 31. Rdd1 {[%clk 0:01:10.6]} 31... Qxb3 {[%clk 0:01:54.6]} 32. axb3
{[%clk 0:01:10.5]} 32... Nc7 {[%clk 0:01:48.7]} 33. b4 {[%clk 0:01:03.5]} 33...
Ne6 {[%clk 0:01:47.4]} 34. Nc3 {[%clk 0:01:01.6]} 34... a5 {[%clk 0:01:43.4]}
35. bxa5 {[%clk 0:00:56.6]} 35... Rxc5 {[%clk 0:01:41.3]} 36. Nd5 {[%clk
0:00:55.7]} 36... Rxc1 {[%clk 0:01:39.5]} 37. Rxc1 {[%clk 0:00:54.8]} 37... Nd4
{[%clk 0:01:35.3]} 38. Nf6+ {[%clk 0:00:53.3]} 38... Kg7 {[%clk 0:01:32.4]} 39.
Nxh7 {[%clk 0:00:51.1]} 39... Kxh7 {[%clk 0:01:31.7]} 40. a6 {[%clk 0:00:50]}
40... Nb5 {[%clk 0:01:29.7]} 41. Rb1 {[%clk 0:00:46.6]} 41... Na7 {[%clk
0:01:26.5]} 42. Rb7 {[%clk 0:00:45.4]} 42... Bc5+ {[%clk 0:01:18]} 43. Kf1
{[%clk 0:00:43.8]} 43... Kg6 {[%clk 0:01:17.5]} 44. Ke2 {[%clk 0:00:42.8]} 44...
Kf5 {[%clk 0:01:14.3]} 45. Kd3 {[%clk 0:00:35.4]} 45... Kxe5 {[%clk 0:01:08.4]}
46. Rxf7 {[%clk 0:00:34.7]} 46... Kd6 {[%clk 0:01:04.4]} 47. Rf6+ {[%clk
0:00:33.5]} 47... Kd5 {[%clk 0:01:02.1]} 48. Rxh6 {[%clk 0:00:32.2]} 48... Ke5
{[%clk 0:00:59.5]} 49. Rh7 {[%clk 0:00:29.3]} 49... Kd5 {[%clk 0:00:55.8]} 50.
Rg7 {[%clk 0:00:27.9]} 50... g4 {[%clk 0:00:52.7]} 51. Rxg4 {[%clk 0:00:26.5]}
51... Kc6 {[%clk 0:00:52.4]} 52. Rg6+ {[%clk 0:00:25.1]} 52... Kb5 {[%clk
0:00:51.7]} 53. f4 {[%clk 0:00:22.5]} 53... Bb6 {[%clk 0:00:51.1]} 54. Bb7
{[%clk 0:00:21]} 54... Nc6 {[%clk 0:00:47.1]} 55. Rxc6 {[%clk 0:00:19.4]} 55...
Bg1 {[%clk 0:00:44.7]} 56. Ke4 {[%clk 0:00:19.3]} 56... Ba7 {[%clk 0:00:42.8]}
57. f5 {[%clk 0:00:18.3]} 57... Bc5 {[%clk 0:00:39.9]} 58. Rxc5+ {[%clk
0:00:16.9]} 58... Kxc5 {[%clk 0:00:37.9]} 59. a7 {[%clk 0:00:16.8]} 59... Kb6
{[%clk 0:00:36.8]} 60. a8=Q {[%clk 0:00:16.2]} 1-0

[Event "Live Chess"]
[Site "Chess.com"]
[Date "2023.05.21"]
[Round "-"]
[White "BillythekidFellowes"]
[Black "MarkLim1"]
[Result "1-0"]
[WhiteElo "2073"]
[BlackElo "1702"]
[TimeControl "300"]
[EndTime "5:41:44 PDT"]
[Termination "BillythekidFellowes won on time"]

1. e4 {[%clk 0:04:58.6]} 1... c6 {[%clk 0:04:57]} 2. Nf3 {[%clk 0:04:58.5]} 2...
d5 {[%clk 0:04:56.4]} 3. exd5 {[%clk 0:04:57.7]} 3... cxd5 {[%clk 0:04:55.8]} 4.
d4 {[%clk 0:04:57.6]} 4... Bg4 {[%clk 0:04:54.8]} 5. c4 {[%clk 0:04:55]} 5...
Nc6 {[%clk 0:04:52.9]} 6. Nc3 {[%clk 0:04:54]} 6... e6 {[%clk 0:04:52]} 7. h3
{[%clk 0:04:51.3]} 7... Bh5 {[%clk 0:04:51]} 8. Qb3 {[%clk 0:04:49]} 8... Nf6
{[%clk 0:04:47.9]} 9. Qxb7 {[%clk 0:04:30.7]} 9... Rc8 {[%clk 0:04:47]} 10. cxd5
{[%clk 0:04:04.3]} 10... Bxf3 {[%clk 0:04:44.3]} 11. gxf3 {[%clk 0:03:53.4]}
11... Nxd4 {[%clk 0:04:43.2]} 12. Bg5 {[%clk 0:03:45.1]} 12... Nxf3+ {[%clk
0:04:32.2]} 13. Kd1 {[%clk 0:03:44]} 13... Nxg5 {[%clk 0:04:30.9]} 14. Bb5+
{[%clk 0:03:36.2]} 14... Nd7 {[%clk 0:04:29.3]} 15. Re1 {[%clk 0:03:33]} 15...
Be7 {[%clk 0:04:17.4]} 16. h4 {[%clk 0:03:30.9]} 16... Nf3 {[%clk 0:04:14.1]}
17. Re3 {[%clk 0:03:22.5]} 17... Nd4 {[%clk 0:04:03.3]} 18. dxe6 {[%clk
0:03:15.6]} 18... Nxe6 {[%clk 0:03:55.9]} 19. Ke1 {[%clk 0:02:52.8]} 19... Rc7
{[%clk 0:03:44.8]} 20. Qf3 {[%clk 0:02:28.7]} 20... O-O {[%clk 0:03:39.5]} 21.
Rd1 {[%clk 0:02:05]} 21... Qc8 {[%clk 0:03:27.7]} 22. Nd5 {[%clk 0:01:48.3]}
22... Ne5 {[%clk 0:02:19.6]} 23. Rxe5 {[%clk 0:01:43.2]} 23... Bd6 {[%clk
0:02:04.6]} 24. Re2 {[%clk 0:01:30.8]} 24... Rc1 {[%clk 0:01:55.6]} 25. h5
{[%clk 0:01:15.7]} 25... Nd4 {[%clk 0:01:37.8]} 26. Qg2 {[%clk 0:00:57.6]} 26...
Rxd1+ {[%clk 0:01:06.9]} 27. Kxd1 {[%clk 0:00:53.2]} 27... Nxe2 {[%clk
0:00:51.1]} 28. Kxe2 {[%clk 0:00:44.4]} 28... Qe6+ {[%clk 0:00:44]} 29. Ne3
{[%clk 0:00:42.8]} 29... Bc5 {[%clk 0:00:36.9]} 30. Bc4 {[%clk 0:00:41.7]} 30...
Qe7 {[%clk 0:00:26.4]} 31. h6 {[%clk 0:00:40]} 31... g6 {[%clk 0:00:23.2]} 32.
Qd5 {[%clk 0:00:37.4]} 32... Bxe3 {[%clk 0:00:20.5]} 33. fxe3 {[%clk 0:00:37.3]}
33... Re8 {[%clk 0:00:14.1]} 34. Qd4 {[%clk 0:00:36.2]} 34... Qe5 {[%clk
0:00:07.8]} 35. Qxa7 {[%clk 0:00:34.2]} 35... Qh2+ {[%clk 0:00:06.5]} 36. Kd3
{[%clk 0:00:33.2]} 36... Rd8+ {[%clk 0:00:05.3]} 37. Kc3 {[%clk 0:00:32]} 37...
Qe5+ {[%clk 0:00:04.1]} 38. Kb3 {[%clk 0:00:29.7]} 38... Rb8+ {[%clk 0:00:03.2]}
39. Ka4 {[%clk 0:00:25.9]} 39... Qe8+ {[%clk 0:00:01.6]} 40. Ka3 {[%clk
0:00:25.4]} 40... Qf8+ {[%clk 0:00:00.1]} 41. b4 {[%clk 0:00:25.3]} 1-0

[Event "Live Chess"]
[Site "Chess.com"]
[Date "2023.05.21"]
[Round "-"]
[White "tpm07"]
[Black "defenderalist"]
[Result "1-0"]
[WhiteElo "1947"]
[BlackElo "1641"]
[TimeControl "300"]
[EndTime "5:41:44 PDT"]
[Termination "tpm07 won by resignation"]

1. e4 {[%clk 0:04:57.8]} 1... e6 {[%clk 0:04:58.5]} 2. Nf3 {[%clk 0:04:55.8]}
2... b6 {[%clk 0:04:58.2]} 3. Nc3 {[%clk 0:04:54.5]} 3... Bb7 {[%clk 0:04:57.8]}
4. d4 {[%clk 0:04:53.9]} 4... Bb4 {[%clk 0:04:55.5]} 5. Bd3 {[%clk 0:04:52.8]}
5... Nf6 {[%clk 0:04:53.2]} 6. Qe2 {[%clk 0:04:51.6]} 6... O-O {[%clk
0:04:51.3]} 7. O-O {[%clk 0:04:49.8]} 7... c5 {[%clk 0:04:44.3]} 8. a3 {[%clk
0:04:47.5]} 8... cxd4 {[%clk 0:04:43.3]} 9. Nxd4 {[%clk 0:04:44.7]} 9... Bxc3
{[%clk 0:04:38.3]} 10. bxc3 {[%clk 0:04:44.6]} 10... d5 {[%clk 0:04:34.6]} 11.
e5 {[%clk 0:04:42.2]} 11... Nfd7 {[%clk 0:04:31.9]} 12. f4 {[%clk 0:04:40]}
12... Qh4 {[%clk 0:04:29.2]} 13. Nf3 {[%clk 0:04:30.5]} 13... Qg4 {[%clk
0:04:25.2]} 14. h3 {[%clk 0:04:21.4]} 14... Qh5 {[%clk 0:04:24.2]} 15. f5 {[%clk
0:03:43.4]} 15... exf5 {[%clk 0:04:05.6]} 16. e6 {[%clk 0:03:41.5]} 16... Nc5
{[%clk 0:03:44]} 17. e7 {[%clk 0:03:28.3]} 17... Re8 {[%clk 0:03:41.6]} 18. Bb5
{[%clk 0:03:24.6]} 18... Nc6 {[%clk 0:03:39.5]} 19. Bxc6 {[%clk 0:03:15]} 19...
Bxc6 {[%clk 0:03:37.7]} 20. Nd4 {[%clk 0:03:10]} 20... Qxe2 {[%clk 0:03:34.8]}
21. Nxe2 {[%clk 0:03:06.4]} 21... g6 {[%clk 0:03:28.8]} 22. Nd4 {[%clk
0:03:03.9]} 22... Bb5 {[%clk 0:03:22.9]} 23. Re1 {[%clk 0:03:01.5]} 23... Ba6
{[%clk 0:03:17.8]} 24. Bg5 {[%clk 0:02:52.6]} 24... Ne4 {[%clk 0:03:16]} 25. Bh4
{[%clk 0:02:45.8]} 25... f6 {[%clk 0:03:08.7]} 26. Nc6 {[%clk 0:02:38.6]} 26...
Bb7 {[%clk 0:03:03.9]} 27. Nd8 {[%clk 0:02:28.5]} 27... Rxe7 {[%clk 0:02:51.3]}
28. Bxf6 {[%clk 0:02:12.9]} 28... Nxf6 {[%clk 0:01:28.7]} 29. Rxe7 {[%clk
0:02:09]} 29... Rxd8 {[%clk 0:01:28.3]} 30. Rxb7 {[%clk 0:02:07.9]} 30... Ne4
{[%clk 0:01:24.5]} 31. Rxa7 {[%clk 0:01:59.4]} 31... Nxc3 {[%clk 0:01:23.5]} 32.
Re1 {[%clk 0:01:54.6]} 32... Ne4 {[%clk 0:01:21.8]} 33. Rb1 {[%clk 0:01:51.6]}
33... Rc8 {[%clk 0:01:18.8]} 34. Rxb6 {[%clk 0:01:47.5]} 34... Nf6 {[%clk
0:01:01.8]} 35. Rxf6 {[%clk 0:01:44.1]} 1-0

[Event "Live Chess"]
[Site "Chess.com"]
[Date "2023.05.21"]
[Round "-"]
[White "seasidecastle27"]
[Black "Conradical12"]
[Result "1-0"]
[WhiteElo "1892"]
[BlackElo "1570"]
[TimeControl "300"]
[EndTime "5:41:55 PDT"]
[Termination "seasidecastle27 won by resignation"]

1. d4 {[%clk 0:04:57.9]} 1... d5 {[%clk 0:04:57.2]} 2. Nf3 {[%clk 0:04:56.9]}
2... Nf6 {[%clk 0:04:53.1]} 3. Bf4 {[%clk 0:04:55.6]} 3... Nc6 {[%clk
0:04:50.2]} 4. e3 {[%clk 0:04:54.5]} 4... Bf5 {[%clk 0:04:49]} 5. Bd3 {[%clk
0:04:52.7]} 5... Bxd3 {[%clk 0:04:47.4]} 6. Qxd3 {[%clk 0:04:51.1]} 6... e6
{[%clk 0:04:45]} 7. c3 {[%clk 0:04:49.1]} 7... Bd6 {[%clk 0:04:40]} 8. Bg3
{[%clk 0:04:46.1]} 8... Ne4 {[%clk 0:04:37.2]} 9. Nbd2 {[%clk 0:04:44.2]} 9...
Nxg3 {[%clk 0:04:35]} 10. hxg3 {[%clk 0:04:42.7]} 10... Qf6 {[%clk 0:04:32.4]}
11. e4 {[%clk 0:04:40.2]} 11... dxe4 {[%clk 0:04:29]} 12. Nxe4 {[%clk
0:04:38.6]} 12... Qe7 {[%clk 0:04:25.1]} 13. Nxd6+ {[%clk 0:04:32.3]} 13... Qxd6
{[%clk 0:04:23.6]} 14. Rxh7 {[%clk 0:04:30.6]} 14... Rxh7 {[%clk 0:04:21.1]} 15.
Qxh7 {[%clk 0:04:28.3]} 15... O-O-O {[%clk 0:04:20.7]} 16. O-O-O {[%clk
0:04:26.7]} 16... e5 {[%clk 0:04:18.3]} 17. Qxg7 {[%clk 0:04:18]} 17... exd4
{[%clk 0:04:14.3]} 18. Nxd4 {[%clk 0:04:13.8]} 18... Nxd4 {[%clk 0:03:54.9]} 19.
Rxd4 {[%clk 0:04:11.8]} 19... Qe6 {[%clk 0:03:53]} 20. Rxd8+ {[%clk 0:04:05.1]}
20... Kxd8 {[%clk 0:03:49.5]} 21. Qd4+ {[%clk 0:03:59.9]} 21... Kc8 {[%clk
0:03:48]} 22. Kd2 {[%clk 0:03:56.4]} 22... Qh6+ {[%clk 0:03:41]} 23. f4 {[%clk
0:03:52]} 23... Qh2 {[%clk 0:03:38.2]} 24. Qf2 {[%clk 0:03:45.3]} 24... Kd7
{[%clk 0:03:37.4]} 25. Kc2 {[%clk 0:03:42.3]} 25... Kc6 {[%clk 0:03:33.9]} 26.
Kb3 {[%clk 0:03:40.1]} 26... Qh1 {[%clk 0:03:25.5]} 27. Qf3+ {[%clk 0:03:37.8]}
27... Kd7 {[%clk 0:03:20.7]} 28. Qd5+ {[%clk 0:03:35.5]} 28... Kc8 {[%clk
0:03:18.5]} 29. Qxf7 {[%clk 0:03:32]} 29... Qd1+ {[%clk 0:03:13.2]} 30. Ka3
{[%clk 0:03:25.7]} 30... Qd6+ {[%clk 0:03:10.4]} 31. b4 {[%clk 0:03:21.2]} 31...
b5 {[%clk 0:03:02.3]} 32. Qe8+ {[%clk 0:03:17.2]} 32... Kb7 {[%clk 0:02:59.9]}
33. Qxb5+ {[%clk 0:03:15]} 33... Ka8 {[%clk 0:02:58.8]} 1-0

[Event "Live Chess"]
[Site "Chess.com"]
[Date "2023.05.21"]
[Round "-"]
[White "ameetghasi100"]
[Black "MartynColebrook"]
[Result "1-0"]
[WhiteElo "2603"]
[BlackElo "965"]
[TimeControl "300"]
[EndTime "5:41:59 PDT"]
[Termination "ameetghasi100 won by resignation"]

1. d4 {[%clk 0:04:58.5]} 1... Nf6 {[%clk 0:04:57.9]} 2. c4 {[%clk 0:04:58.4]}
2... g6 {[%clk 0:04:56.4]} 3. Nf3 {[%clk 0:04:54.1]} 3... Bg7 {[%clk 0:04:55.3]}
4. Nc3 {[%clk 0:04:54]} 4... d6 {[%clk 0:04:53.7]} 5. Bg5 {[%clk 0:04:53.9]}
5... O-O {[%clk 0:04:50.7]} 6. Qd2 {[%clk 0:04:53.1]} 6... Nbd7 {[%clk
0:04:48.9]} 7. h4 {[%clk 0:04:50.9]} 7... e5 {[%clk 0:04:45.2]} 8. dxe5 {[%clk
0:04:49.3]} 8... Nxe5 {[%clk 0:04:42.9]} 9. O-O-O {[%clk 0:04:49.2]} 9... Nxf3
{[%clk 0:04:34.5]} 10. exf3 {[%clk 0:04:48.1]} 10... Bf5 {[%clk 0:04:26.1]} 11.
g4 {[%clk 0:04:46.4]} 11... Be6 {[%clk 0:04:22.4]} 12. h5 {[%clk 0:04:46.3]}
12... Qd7 {[%clk 0:04:15.6]} 13. Qf4 {[%clk 0:04:43.3]} 13... Ne8 {[%clk
0:04:05.7]} 14. hxg6 {[%clk 0:04:22.8]} 14... fxg6 {[%clk 0:04:00.6]} 15. Qh2
{[%clk 0:04:22.7]} 15... Rxf3 {[%clk 0:03:44]} 16. Qxh7+ {[%clk 0:04:20.1]}
16... Kf7 {[%clk 0:03:42.6]} 17. Bd3 {[%clk 0:04:19.7]} 17... Rxf2 {[%clk
0:03:19.6]} 18. Bxg6+ {[%clk 0:04:16.5]} 18... Kf8 {[%clk 0:03:14.5]} 19. Rdf1
{[%clk 0:04:16.4]} 19... Bd4 {[%clk 0:02:57.1]} 20. Rxf2+ {[%clk 0:04:13.7]}
20... Bxf2 {[%clk 0:02:54.8]} 21. Qh8+ {[%clk 0:04:10.8]} 21... Bg8 {[%clk
0:02:42.7]} 22. Rf1 {[%clk 0:04:10.7]} 1-0

[Event "Live Chess"]
[Site "Chess.com"]
[Date "2023.05.21"]
[Round "-"]
[White "Vitalii18a"]
[Black "manthanit"]
[Result "1-0"]
[WhiteElo "1142"]
[BlackElo "1087"]
[TimeControl "300"]
[EndTime "5:42:03 PDT"]
[Termination "Vitalii18a won on time"]

1. e4 {[%clk 0:04:58]} 1... e6 {[%clk 0:04:59.4]} 2. Nf3 {[%clk 0:04:56.4]} 2...
d6 {[%clk 0:04:57.1]} 3. c3 {[%clk 0:04:52.9]} 3... b6 {[%clk 0:04:56.8]} 4. Bd3
{[%clk 0:04:51.6]} 4... Bb7 {[%clk 0:04:56.4]} 5. Bc2 {[%clk 0:04:49.8]} 5...
Nd7 {[%clk 0:04:55.5]} 6. O-O {[%clk 0:04:48.6]} 6... g6 {[%clk 0:04:55]} 7. d4
{[%clk 0:04:44.6]} 7... Bg7 {[%clk 0:04:54.5]} 8. Bg5 {[%clk 0:04:40.5]} 8...
Ne7 {[%clk 0:04:51.9]} 9. Qd2 {[%clk 0:04:30.6]} 9... d5 {[%clk 0:04:45.7]} 10.
e5 {[%clk 0:04:26.2]} 10... c5 {[%clk 0:04:40.7]} 11. Bh6 {[%clk 0:04:24.2]}
11... Bxh6 {[%clk 0:04:36.5]} 12. Qxh6 {[%clk 0:04:22.4]} 12... cxd4 {[%clk
0:04:30.6]} 13. cxd4 {[%clk 0:04:19.9]} 13... Nf5 {[%clk 0:04:29.7]} 14. Bxf5
{[%clk 0:04:08.5]} 14... exf5 {[%clk 0:04:23.4]} 15. Qg7 {[%clk 0:04:05.6]}
15... Ke7 {[%clk 0:04:09.4]} 16. Nc3 {[%clk 0:04:01.6]} 16... Qg8 {[%clk
0:04:07.8]} 17. Qh6 {[%clk 0:03:42.7]} 17... f6 {[%clk 0:03:41.7]} 18. exf6+
{[%clk 0:03:36.9]} 18... Nxf6 {[%clk 0:03:40.6]} 19. Rfe1+ {[%clk 0:03:29.8]}
19... Kf7 {[%clk 0:03:39.8]} 20. Ne5+ {[%clk 0:03:23.9]} 20... Ke7 {[%clk
0:03:20.5]} 21. Nxg6+ {[%clk 0:03:07]} 21... Kd6 {[%clk 0:03:09.8]} 22. Nxh8
{[%clk 0:02:55.7]} 22... Qxh8 {[%clk 0:03:06.2]} 23. Re2 {[%clk 0:02:40.6]}
23... Ba6 {[%clk 0:02:59.4]} 24. Re5 {[%clk 0:02:25.7]} 24... Bd3 {[%clk
0:02:56.9]} 25. Rae1 {[%clk 0:02:20.2]} 25... Kd7 {[%clk 0:01:08.6]} 26. Re7+
{[%clk 0:02:12.4]} 26... Kd6 {[%clk 0:00:52.6]} 27. R7e6+ {[%clk 0:02:04.1]}
27... Kd7 {[%clk 0:00:50.9]} 28. Rxf6 {[%clk 0:01:55.2]} 28... Re8 {[%clk
0:00:48.7]} 29. Rd6+ {[%clk 0:01:41.3]} 29... Kc7 {[%clk 0:00:38.9]} 30. Nb5+
{[%clk 0:01:00.6]} 30... Bxb5 {[%clk 0:00:31.2]} 31. Rxe8 {[%clk 0:00:51]} 31...
Qxe8 {[%clk 0:00:29.2]} 32. h3 {[%clk 0:00:47.9]} 32... Qh8 {[%clk 0:00:16.5]}
33. Rxd5 {[%clk 0:00:44.4]} 33... Bc6 {[%clk 0:00:14.1]} 34. Qd6+ {[%clk
0:00:36.9]} 34... Kb7 {[%clk 0:00:11.2]} 35. Qe7+ {[%clk 0:00:33.3]} 35... Ka6
{[%clk 0:00:08.3]} 36. Qa3+ {[%clk 0:00:27.6]} 36... Kb7 {[%clk 0:00:06.6]} 37.
Rxf5 {[%clk 0:00:22.2]} 37... Qxd4 {[%clk 0:00:04]} 38. Qe7+ {[%clk 0:00:20.1]}
38... Kc8 {[%clk 0:00:01.4]} 39. Rf8+ {[%clk 0:00:17.4]} 1-0

[Event "Live Chess"]
[Site "Chess.com"]
[Date "2023.05.21"]
[Round "-"]
[White "TheSmoulderingMaster"]
[Black "Tushinskiy"]
[Result "0-1"]
[WhiteElo "1636"]
[BlackElo "2221"]
[TimeControl "300"]
[EndTime "5:42:05 PDT"]
[Termination "Tushinskiy won by resignation"]

1. e4 {[%clk 0:04:59.4]} 1... e5 {[%clk 0:04:53.9]} 2. Nf3 {[%clk 0:04:58]} 2...
d6 {[%clk 0:04:53.8]} 3. Bc4 {[%clk 0:04:55.5]} 3... Bg4 {[%clk 0:04:52.2]} 4.
O-O {[%clk 0:04:52.6]} 4... Nf6 {[%clk 0:04:49.4]} 5. h3 {[%clk 0:04:51.6]} 5...
Bh5 {[%clk 0:04:25.4]} 6. d4 {[%clk 0:04:47]} 6... Nbd7 {[%clk 0:04:23.4]} 7. c3
{[%clk 0:04:42.9]} 7... c6 {[%clk 0:04:21.5]} 8. Bg5 {[%clk 0:04:41.1]} 8... Be7
{[%clk 0:04:17.9]} 9. Nbd2 {[%clk 0:04:37.2]} 9... Qc7 {[%clk 0:04:03.2]} 10.
Qb3 {[%clk 0:04:33.6]} 10... O-O {[%clk 0:03:59.5]} 11. Nh4 {[%clk 0:04:29.7]}
11... Rfe8 {[%clk 0:03:50]} 12. Nf5 {[%clk 0:04:26.5]} 12... Bf8 {[%clk
0:03:47.6]} 13. f4 {[%clk 0:04:17.7]} 13... exd4 {[%clk 0:03:39.5]} 14. cxd4
{[%clk 0:04:15.5]} 14... Nxe4 {[%clk 0:03:37.7]} 15. Nxe4 {[%clk 0:04:13.8]}
15... Rxe4 {[%clk 0:03:37.6]} 16. Rae1 {[%clk 0:04:03.5]} 16... Rxe1 {[%clk
0:03:34.9]} 17. Rxe1 {[%clk 0:04:02.6]} 17... d5 {[%clk 0:03:34.5]} 18. Be2
{[%clk 0:03:59.9]} 18... Bg6 {[%clk 0:03:32.7]} 19. Bg4 {[%clk 0:03:56.5]} 19...
Nb6 {[%clk 0:03:27.3]} 20. Be7 {[%clk 0:03:41.2]} 20... Bxf5 {[%clk 0:03:14.2]}
21. Bxf5 {[%clk 0:03:39.1]} 21... Bxe7 {[%clk 0:03:11.8]} 22. Qd3 {[%clk
0:03:30.3]} 22... g6 {[%clk 0:03:10.2]} 0-1

[Event "Live Chess"]
[Site "Chess.com"]
[Date "2023.05.21"]
[Round "-"]
[White "Duke_of_Bebington"]
[Black "elizaveta_frundina"]
[Result "0-1"]
[WhiteElo "1568"]
[BlackElo "1582"]
[TimeControl "300"]
[EndTime "5:42:20 PDT"]
[Termination "elizaveta_frundina won by checkmate"]

1. e4 {[%clk 0:04:58.5]} 1... c5 {[%clk 0:04:58.6]} 2. c3 {[%clk 0:04:56.9]}
2... b6 {[%clk 0:04:56.9]} 3. d4 {[%clk 0:04:56.2]} 3... Bb7 {[%clk 0:04:55.4]}
4. d5 {[%clk 0:04:52.1]} 4... Nf6 {[%clk 0:04:47.2]} 5. Bd3 {[%clk 0:04:48.6]}
5... e6 {[%clk 0:04:36.5]} 6. c4 {[%clk 0:04:47]} 6... exd5 {[%clk 0:04:19.2]}
7. cxd5 {[%clk 0:04:43.7]} 7... d6 {[%clk 0:04:17.1]} 8. Nc3 {[%clk 0:04:39.4]}
8... Be7 {[%clk 0:04:12.8]} 9. Nf3 {[%clk 0:04:37.9]} 9... O-O {[%clk
0:04:09.1]} 10. O-O {[%clk 0:04:36.1]} 10... h6 {[%clk 0:04:06.9]} 11. Re1
{[%clk 0:04:30.7]} 11... Nbd7 {[%clk 0:04:04.4]} 12. Bf4 {[%clk 0:04:26.9]}
12... Qc7 {[%clk 0:03:58.7]} 13. Rc1 {[%clk 0:04:13]} 13... Ne5 {[%clk
0:03:43.1]} 14. Nxe5 {[%clk 0:04:05.3]} 14... dxe5 {[%clk 0:03:41.5]} 15. Bg3
{[%clk 0:04:00.2]} 15... c4 {[%clk 0:03:37.2]} 16. Nb5 {[%clk 0:03:54.3]} 16...
Qd7 {[%clk 0:03:27.7]} 17. Bxc4 {[%clk 0:03:52.3]} 17... Rac8 {[%clk 0:03:19.8]}
18. Be2 {[%clk 0:03:46.9]} 18... Rxc1 {[%clk 0:03:13.4]} 19. Qxc1 {[%clk
0:03:45.1]} 19... Rc8 {[%clk 0:03:10]} 20. Qd2 {[%clk 0:03:32.3]} 20... Nxe4
{[%clk 0:03:02.1]} 21. Qe3 {[%clk 0:03:23.2]} 21... Nxg3 {[%clk 0:02:47.3]} 22.
hxg3 {[%clk 0:03:23.1]} 22... Qxd5 {[%clk 0:02:40.3]} 23. Bf3 {[%clk 0:03:18.2]}
23... Qxb5 {[%clk 0:02:32.1]} 24. Bxb7 {[%clk 0:03:16.4]} 24... Rc2 {[%clk
0:02:09.3]} 25. Qxe5 {[%clk 0:02:50.4]} 25... Qc5 {[%clk 0:01:38.9]} 26. Qb8+
{[%clk 0:02:31]} 26... Bf8 {[%clk 0:01:29.1]} 27. Qf4 {[%clk 0:02:22.8]} 27...
Bd6 {[%clk 0:01:06.2]} 28. Re8+ {[%clk 0:02:07]} 28... Bf8 {[%clk 0:01:04.4]}
29. Be4 {[%clk 0:01:56.6]} 29... Rc1+ {[%clk 0:00:50.1]} 30. Kh2 {[%clk
0:01:52.7]} 30... Qh5+ {[%clk 0:00:34.4]} 31. Qh4 {[%clk 0:01:49.6]} 31... Qd1
{[%clk 0:00:28.4]} 32. Kh3 {[%clk 0:01:43.7]} 32... Qd7+ {[%clk 0:00:17.5]} 33.
Qg4 {[%clk 0:01:25.6]} 33... Rh1# {[%clk 0:00:15.1]} 0-1

[Event "Live Chess"]
[Site "Chess.com"]
[Date "2023.05.21"]
[Round "-"]
[White "grillage"]
[Black "Greenbecker"]
[Result "1-0"]
[WhiteElo "1802"]
[BlackElo "1678"]
[TimeControl "300"]
[EndTime "5:42:31 PDT"]
[Termination "grillage won by resignation"]

1. d4 {[%clk 0:04:59.3]} 1... d5 {[%clk 0:04:58.5]} 2. Nc3 {[%clk 0:04:55.4]}
2... Nf6 {[%clk 0:04:57.5]} 3. Bf4 {[%clk 0:04:53.1]} 3... c6 {[%clk 0:04:56.6]}
4. e3 {[%clk 0:04:50.6]} 4... Bf5 {[%clk 0:04:55.7]} 5. Bd3 {[%clk 0:04:42.2]}
5... Bxd3 {[%clk 0:04:54]} 6. cxd3 {[%clk 0:04:41.4]} 6... Nbd7 {[%clk
0:04:53.6]} 7. Nf3 {[%clk 0:04:37.9]} 7... Qb6 {[%clk 0:04:51.9]} 8. Qc2 {[%clk
0:04:17.2]} 8... e6 {[%clk 0:04:48.5]} 9. O-O {[%clk 0:04:15.2]} 9... c5 {[%clk
0:04:47.5]} 10. Na4 {[%clk 0:04:11.1]} 10... Qa5 {[%clk 0:04:42.1]} 11. Nxc5
{[%clk 0:04:05]} 11... Nxc5 {[%clk 0:04:40.6]} 12. dxc5 {[%clk 0:04:00.1]} 12...
Qxc5 {[%clk 0:04:34.6]} 13. Rfc1 {[%clk 0:03:52.8]} 13... Rc8 {[%clk 0:04:31.2]}
14. Qd2 {[%clk 0:03:42]} 14... Qxc1+ {[%clk 0:04:12]} 15. Rxc1 {[%clk
0:03:39.5]} 1-0

[Event "Live Chess"]
[Site "Chess.com"]
[Date "2023.05.21"]
[Round "-"]
[White "YrrriKharkiv"]
[Black "Berdgross"]
[Result "1-0"]
[WhiteElo "2072"]
[BlackElo "682"]
[TimeControl "300"]
[EndTime "5:43:04 PDT"]
[Termination "YrrriKharkiv won by resignation"]

1. d4 {[%clk 0:04:56.4]} 1... d5 {[%clk 0:04:59.9]} 2. Nf3 {[%clk 0:04:55.1]}
2... e6 {[%clk 0:04:59.8]} 3. c4 {[%clk 0:04:54.3]} 3... dxc4 {[%clk 0:04:56.4]}
4. Nc3 {[%clk 0:04:53.5]} 4... Nc6 {[%clk 0:04:54.1]} 5. e4 {[%clk 0:04:52]}
5... Bb4 {[%clk 0:04:47.4]} 6. Bxc4 {[%clk 0:04:49.8]} 6... Bxc3+ {[%clk
0:04:39.1]} 7. bxc3 {[%clk 0:04:47.8]} 7... Nf6 {[%clk 0:04:36.3]} 8. Bg5 {[%clk
0:04:42.9]} 8... h6 {[%clk 0:04:34]} 9. Bh4 {[%clk 0:04:41.9]} 9... O-O {[%clk
0:04:31.4]} 10. e5 {[%clk 0:04:35.4]} 10... Ne4 {[%clk 0:04:28]} 11. Bxd8 {[%clk
0:04:33.4]} 11... Rxd8 {[%clk 0:04:23.9]} 12. Qc2 {[%clk 0:04:31.2]} 12... Ng5
{[%clk 0:04:17.5]} 13. Nxg5 {[%clk 0:04:28.4]} 13... hxg5 {[%clk 0:04:16.6]} 14.
O-O {[%clk 0:04:28.1]} 14... Bd7 {[%clk 0:04:11.4]} 15. f4 {[%clk 0:04:27.3]}
15... gxf4 {[%clk 0:04:10]} 16. Rxf4 {[%clk 0:04:24.8]} 1-0